fUSD/lending_fUSD_20240105
["ID","MTS","AMOUNT","RATE_DAILY","PERIOD"]
[310246169,1704414698286,-151.0,0.0004169,14]
[310246170,1704414698296,-212.581512,0.0004169,14]
[310246171,1704414698305,-212.581512,0.0004169,14]
[310246172,1704414698318,-153.608473,0.0004169,14]
[310246173,1704414698328,-520.818755,0.0004169,14]
[310246174,1704414698339,-520.818755,0.0004169,14]
[310246175,1704414698349,-151.0,0.0004169,14]
[310246176,1704414698358,-1444.827588,0.0004169,14]
[310246177,1704414698367,-1444.827588,0.0004169,14]
[310246178,1704414698378,-151.0,0.0004169,14]
[310246179,1704414698387,-216.58934,0.0004169,14]
[310246180,1704414698401,-216.58934,0.0004169,14]
[310246181,1704414698411,-495.900744,0.0004169,14]
[310246182,1704414698422,-495.900744,0.0004169,14]
[310246183,1704414698431,-1175.413069,0.0004169,14]
[310246184,1704414698441,-1175.413069,0.0004169,14]
[310246185,1704414698451,-151.0,0.0004169,14]
[310246186,1704414698462,-151.0,0.0004169,14]
[310246187,1704414698471,-232.5,0.0004169,14]
[310246188,1704414698481,-151.0,0.0004169,14]
[310246189,1704414698490,-847.16,0.00041698,2]
[310246190,1704414698499,-155.05696804,0.00041708,14]
[310246191,1704414698509,-150.0,0.00041709,30]
[310246192,1704414698519,-155.05696806,0.00041723,14]
[310246193,1704414698528,-150.0,0.00041727,30]
[310246194,1704414698538,-150.0,0.00041727,30]
[310246195,1704414698547,-2108.59051081,0.00041753,20]
[310246196,1704414698556,-847.16,0.00041753,2]
[310246197,1704414698566,-860.511254,0.0004176,5]
[310246198,1704414698576,-150.0,0.00041776,30]
[310246199,1704414698585,-666.0,0.0004178,2]
[310246200,1704414698595,-500.0,0.0004178,5]
[310246201,1704414698605,-150.0,0.00041786,30]
[310246202,1704414698614,-220.0,0.00041787,28]
[310246203,1704414698623,-157.40105,0.00041798,2]
[310246204,1704414698634,-165.0,0.000418,30]
[310246205,1704414698643,-500.0,0.000418,5]
[310246206,1704414698656,-150.0,0.00041805,3]
[310246207,1704414698665,-847.16,0.00041808,2]
[310246208,1704414698675,-150.0,0.00041813,30]
[310246209,1704414698684,-150.0,0.00041813,30]
[310246210,1704414698694,-500.0,0.0004182,5]
[310246211,1704414698705,-500.0,0.0004184,5]
[310246212,1704414698715,-150.0,0.00041843,30]
[310246213,1704414698725,-977.7073741,0.00041847,5]
[310246214,1704414698735,-191.32324363,0.00041848,14]
[310246215,1704414698744,-150.0,0.0004185,30]
[310246216,1704414698753,-60000.0,0.0004186,6]
[310246217,1704414698764,-500.0,0.0004186,6]
[310246218,1704414698775,-847.16,0.00041863,2]
[310246219,1704414698784,-653.35,0.00041863,110]
[310246220,1704414698794,-500.0,0.00041863,100]
[310246221,1704414698804,-500.0,0.0004188,6]
[310246222,1704414698814,-4625.45,0.000419,7]
[310246223,1704414698823,-500.0,0.000419,6]
[310246224,1704414698833,-150.0,0.0004191,30]
[310246225,1704414698842,-847.16,0.00041917,2]
[310246226,1704414698852,-500.0,0.0004192,6]
[310246227,1704414698862,-500.0,0.0004194,6]
[310246228,1704414698872,-166.99392,0.0004195,4]
[310246229,1704414698881,-500.0,0.0004196,6]
[310246230,1704414698891,-847.16,0.00041972,2]
[310246231,1704414698904,-150.0,0.00041978,30]
[310246232,1704414698912,-500.0,0.0004198,6]
[310246233,1704414698921,-500.0,0.00041987,33]
[310246234,1704414698931,-2817.0,0.0004199,2]
[310246235,1704414698939,-100000.0,0.00042,12]
[310246236,1704414698949,-20000.00354204,0.00042,2]
[310246237,1704414698959,-156.87,0.00042,7]
[310246238,1704414698970,-20000.0,0.00042,8]
[310246239,1704414698980,-10000.0,0.00042,2]
[310246240,1704414698989,-506.6,0.00042,15]
[310246241,1704414698999,-1000.0,0.00042,20]
[310246242,1704414699008,-321.1458126,0.00042,21]
[310246243,1704414699018,-8639.39247517,0.00042,2]
[310246244,1704414699028,-100250.87219392,0.00042,2]
[310246245,1704414699038,-6019.0,0.00042,5]
[310246246,1704414699048,-1635.20797379,0.00042,4]
[310246247,1704414699058,-5528.80936364,0.00042,2]
[310246248,1704414699068,-1344.01833864,0.00042,2]
[310246249,1704414699078,-10000.0,0.00042,7]
[310246250,1704414699199,-490.64960715,0.00042,2]
[310246251,1704414699209,-500.0,0.00042,2]
[310246252,1704414699219,-1000.0,0.00042,6]
[310246253,1704414699229,-2000.0,0.00042,3]
[310246254,1704414699240,-3905.67336105,0.00042,120]
[310246255,1704414699250,-300.0,0.00042,43]
[310246256,1704414699261,-9031.68297674,0.00042,120]
[310246257,1704414699271,-91196.04927573,0.00042,3]
[310246258,1704414699282,-1000.0,0.00042,30]
[310246259,1704414699292,-955.18020739,0.00042,2]
[310246260,1704414699302,-917.31,0.00042,7]
[310246261,1704414699312,-20000.0,0.00042,45]
[310246262,1704414699322,-10000.0,0.00042,5]
[310246263,1704414699331,-10000.0,0.00042,5]
[310246264,1704414699341,-10000.0,0.00042,5]
[310246265,1704414699350,-2000.0,0.00042,2]
[310246266,1704414699359,-2066.37,0.00042,30]
[310246267,1704414699369,-230.0,0.00042,30]
[310246268,1704414699378,-150.0,0.00042,30]
[310246269,1704414699388,-200.0,0.00042,2]
[310246270,1704414699400,-150.0,0.00042,30]
[310246271,1704414699409,-300.0,0.00042,17]
[310246272,1704414699419,-150.0,0.00042,26]
[310246273,1704414699428,-500.0,0.00042,6]
[310246274,1704414699437,-1000.0,0.00042,2]
[310246275,1704414699447,-200.0,0.00042,2]
[310246276,1704414699456,-915.5646056,0.00042,6]
[310246277,1704414699465,-1285.52910442,0.0004201,2]
[310246278,1704414699474,-847.16,0.00042027,2]
[310246279,1704414699484,-150.0,0.00042045,30]
[310246280,1704414699494,-522.67,0.00042054,2]
[310246281,1704414699506,-847.16,0.00042082,2]
[310246282,1704414699520,-653.35,0.00042082,112]
[310246283,1704414699534,-500.0,0.00042082,101]
[310246284,1704414699543,-150.0,0.00042112,30]
[310246285,1704414699560,-847.16,0.00042136,2]
[310246286,1704414699580,-150.0,0.00042136,30]
[310246287,1704414699601,-150.0,0.00042136,30]
[310246288,1704414699617,-9251.85683849,0.00042143,9]
[310246289,1704414699627,-5000.0,0.00042143,6]
[310246290,1704414699637,-5000.0,0.00042143,8]
[310246291,1704414699647,-5000.0,0.00042143,11]
[310246292,1704414699656,-5000.0,0.00042143,11]
[310246293,1704414699666,-150.0,0.00042177,2]
[310246294,1704414699675,-150.0,0.00042179,30]
[310246295,1704414699685,-150.0,0.00042188,30]
[310246296,1704414699694,-150.0,0.00042188,30]
[310246297,1704414699704,-847.16,0.00042191,2]
[310246298,1704414699714,-4625.45,0.000422,7]
[310246299,1704414699723,-1000.0,0.00042205,2]
[310246300,1704414699732,-847.16,0.00042246,2]
[310246301,1704414699744,-150.0,0.00042246,30]
[310246302,1704414699753,-160.0,0.00042288,90]
[310246303,1704414699763,-9537.68052863,0.00042292,8]
[310246304,1704414699775,-5000.0,0.00042292,7]
[310246305,1704414699786,-1000.9828718,0.000423,4]
[310246306,1704414699795,-3598.46017748,0.000423,3]
[310246307,1704414699805,-509.8435171,0.000423,120]
[310246308,1704414699815,-150.0,0.000423,30]
[310246309,1704414699824,-150.0,0.000423,30]
[310246310,1704414699835,-847.16,0.00042301,2]
[310246311,1704414699844,-653.35,0.00042301,114]
[310246312,1704414699854,-500.0,0.00042301,102]
[310246313,1704414699864,-1208.0,0.00042301,30]
[310246314,1704414699873,-150.0,0.00042313,30]
[310246315,1704414699882,-847.33540761,0.00042356,2]
[310246316,1704414699892,-150.0,0.00042375,30]
[310246317,1704414699903,-150.0,0.00042375,30]
[310246318,1704414699913,-150.0,0.00042381,30]
[310246319,1704414699922,-150.0,0.00042429,30]
[310246320,1704414699932,-150.0,0.00042448,30]
[310246321,1704414699942,-522.67,0.00042465,2]
[310246322,1704414699951,-10059.0,0.000425,7]
[310246323,1704414699961,-500.0,0.000425,2]
[310246324,1704414699971,-150.0,0.00042515,30]
[310246325,1704414699981,-7517.7,0.0004252,7]
[310246326,1704414699991,-653.35,0.0004252,116]
[310246327,1704414700001,-500.0,0.0004252,103]
[310246328,1704414700011,-500.0,0.0004252,120]
[310246329,1704414700021,-150.0,0.00042545,30]
[310246330,1704414700031,-150.0,0.00042545,30]
[310246331,1704414700042,-1626.6370374,0.00042546,120]
[310246332,1704414700053,-150.0,0.00042563,30]
[310246333,1704414700066,-150.0,0.00042563,30]
[310246334,1704414700076,-150.0,0.00042582,30]
[310246335,1704414700088,-152.95511515,0.0004263,16]
[310246336,1704414700097,-220.0,0.0004264,28]
[310246337,1704414700107,-150.0,0.00042649,30]
[310246338,1704414700117,-1000.0,0.00042654,31]
[310246339,1704414700127,-203.72346455,0.00042667,4]
[310246340,1704414700137,-150.0,0.00042674,5]
[310246341,1704414700146,-150.0,0.00042716,30]
[310246342,1704414700157,-653.35,0.00042739,118]
[310246343,1704414700166,-500.0,0.00042739,104]
[310246344,1704414700175,-352.808297,0.0004274,14]
[310246345,1704414700185,-150.0,0.0004275,30]
[310246346,1704414700195,-150.0,0.0004275,30]
[310246347,1704414700204,-150.0,0.0004275,30]
[310246348,1704414700213,-150.0,0.00042784,30]
[310246349,1704414700223,-150.0,0.00042851,30]
[310246350,1704414700232,-522.67,0.00042876,2]
[310246351,1704414700242,-448.35,0.00042898,2]
[310246352,1704414700251,-1752.8462372,0.000429,30]
[310246353,1704414700262,-150.0,0.00042918,30]
[310246354,1704414700271,-150.0,0.00042922,4]
[310246355,1704414700281,-150.0,0.00042938,30]
[310246356,1704414700290,-150.0,0.00042938,30]
[310246357,1704414700301,-150.0,0.00042955,30]
[310246358,1704414700316,-150.0,0.00042955,30]
[310246359,1704414700332,-653.35,0.00042958,120]
[310246360,1704414700342,-500.0,0.00042958,105]
[310246361,1704414700355,-150.0,0.00042985,30]
[310246362,1704414700377,-500.0,0.00042987,35]
[310246363,1704414700392,-644.0,0.0004299,2]
[310246364,1704414700404,-315.24875727,0.00042998,60]
[310246365,1704414700414,-100000.0,0.00043,13]
[310246366,1704414700424,-300.0,0.00043,5]
[310246367,1704414700433,-300.0,0.00043,5]
[310246368,1704414700443,-300.0,0.00043,22]
[310246369,1704414700452,-156.87,0.00043,7]
[310246370,1704414700462,-20000.0,0.00043,8]
[310246371,1704414700471,-10000.0,0.00043,7]
[310246372,1704414700481,-281.0,0.00043,7]
[310246373,1704414700490,-400.0,0.00043,5]
[310246374,1704414700500,-46387.76420844,0.00043,5]
[310246375,1704414700510,-201201.62056877,0.00043,5]
[310246376,1704414700520,-171.65016355,0.00043,120]
[310246377,1704414700529,-576.30437431,0.00043,120]
[310246378,1704414700538,-600.0,0.00043,44]
[310246379,1704414700548,-121152.68384571,0.00043,2]
[310246380,1704414700558,-1000.0,0.00043,120]
[310246381,1704414700567,-4375.39,0.00043,7]
[310246382,1704414700578,-21218.78887042,0.00043,7]
[310246383,1704414700587,-20000.0,0.00043,30]
[310246384,1704414700597,-20000.0,0.00043,30]
[310246385,1704414700607,-11092.0,0.00043,5]
[310246386,1704414700617,-2000.0,0.00043,2]
[310246387,1704414700626,-650.0,0.00043,3]
[310246388,1704414700636,-234.08518596,0.00043,2]
[310246389,1704414700645,-317.39150179,0.00043,30]
[310246390,1704414700659,-1014.766078,0.00043,2]
[310246391,1704414700668,-300.0,0.00043,18]
[310246392,1704414700681,-150.0,0.00043,37]
[310246393,1704414700691,-1000.0,0.00043,2]
[310246394,1704414700700,-915.5646056,0.00043,8]
[310246395,1704414700709,-150.0,0.00043035,120]
[310246396,1704414700719,-150.0,0.00043052,30]
[310246397,1704414700729,-150.0,0.00043071,30]
[310246398,1704414700739,-16242.494215,0.000431,2]
[310246399,1704414700749,-150.0,0.00043115,2]
[310246400,1704414700761,-150.0,0.00043119,30]
[310246401,1704414700773,-150.0,0.00043125,30]
[310246402,1704414700783,-150.0,0.00043125,30]
[310246403,1704414700792,-157.75,0.00043151,15]
[310246404,1704414700802,-653.35,0.00043178,120]
[310246405,1704414700814,-500.0,0.00043178,106]
[310246406,1704414700823,-150.0,0.00043187,30]
[310246407,1704414700833,-2266.39041883,0.000432,30]
[310246408,1704414700843,-1828.550144,0.000432,12]
[310246409,1704414700853,-292.88289191,0.000432,30]
[310246410,1704414700863,-150.0,0.000432,30]
[310246411,1704414700873,-150.0,0.000432,30]
[310246412,1704414700882,-150.0,0.00043254,30]
[310246413,1704414700891,-522.67,0.00043287,2]
[310246414,1704414700904,-300.0,0.00043288,5]
[310246415,1704414700913,-300.0,0.00043288,5]
[310246416,1704414700923,-43250.14685996,0.000433,30]
[310246417,1704414700933,-1000.0,0.000433,12]
[310246418,1704414700942,-150.0,0.00043313,30]
[310246419,1704414700952,-150.0,0.00043313,30]
[310246420,1704414700962,-150.0,0.00043321,30]
[310246421,1704414701068,-150.0,0.00043364,30]
[310246422,1704414701078,-150.0,0.00043364,30]
[310246423,1704414701088,-150.0,0.00043388,30]
[310246424,1704414701098,-653.35,0.00043397,120]
[310246425,1704414701109,-500.0,0.00043397,107]
[310246426,1704414701119,-1000.0,0.000434,12]
[310246427,1704414701128,-977.7073741,0.00043426,5]
[310246428,1704414701137,-150.0,0.00043455,30]
[310246429,1704414701149,-220.0,0.00043493,28]
[310246430,1704414701157,-1000.0,0.000435,12]
[310246431,1704414701167,-150.0,0.000435,30]
[310246432,1704414701178,-150.0,0.000435,30]
[310246433,1704414701187,-150.0,0.00043522,30]
[310246434,1704414701197,-300.0,0.00043589,5]
[310246435,1704414701207,-300.0,0.00043589,5]
[310246436,1704414701217,-150.0,0.0004359,30]
[310246437,1704414701226,-1000.0,0.000436,13]
[310246438,1704414701236,-653.35,0.00043616,120]
[310246439,1704414701246,-500.0,0.00043616,108]
[310246440,1704414701255,-666.0,0.0004365,4]
[310246441,1704414701264,-150.0,0.0004365,30]
[310246442,1704414701274,-150.0,0.00043657,30]
[310246443,1704414701284,-1000.0,0.00043677,2]
[310246444,1704414701294,-150.0,0.00043688,30]
[310246445,1704414701304,-150.0,0.00043688,30]
[310246446,1704414701313,-522.67,0.00043698,2]
[310246447,1704414701323,-1000.0,0.000437,13]
[310246448,1704414701332,-10000.47543612,0.000437,30]
[310246449,1704414701342,-150.0,0.00043714,30]
[310246450,1704414701351,-150.0,0.00043724,30]
[310246451,1704414701361,-150.0,0.00043773,30]
[310246452,1704414701370,-150.0,0.00043773,30]
[310246453,1704414701380,-1000.0,0.00043784,31]
[310246454,1704414701389,-150.0,0.00043791,30]
[310246455,1704414701398,-115762.57371422,0.000438,6]
[310246456,1704414701407,-508.58539547,0.000438,2]
[310246457,1704414701417,-151.0,0.000438,14]
[310246458,1704414701426,-151.0,0.000438,14]
[310246459,1704414701436,-212.581512,0.000438,14]
[310246460,1704414701446,-212.581512,0.000438,14]
[310246461,1704414701455,-520.818755,0.000438,14]
[310246462,1704414701465,-520.818755,0.000438,14]
[310246463,1704414701475,-1444.827588,0.000438,14]
[310246464,1704414701485,-1444.827588,0.000438,14]
[310246465,1704414701495,-151.0,0.000438,14]
[310246466,1704414701504,-770.75764406,0.000438,2]
[310246467,1704414701514,-2000.0,0.000438,2]
[310246468,1704414701523,-1000.0,0.000438,13]
[310246469,1704414701533,-216.58934,0.000438,14]
[310246470,1704414701542,-216.58934,0.000438,14]
[310246471,1704414701551,-495.900744,0.000438,14]
[310246472,1704414701561,-495.900744,0.000438,14]
[310246473,1704414701570,-1544.0,0.000438,2]
[310246474,1704414701579,-500.0,0.000438,2]
[310246475,1704414701589,-1175.413069,0.000438,14]
[310246476,1704414701598,-1175.413069,0.000438,14]
[310246477,1704414701607,-212.19257,0.000438,14]
[310246478,1704414701617,-151.0,0.000438,14]
[310246479,1704414701626,-151.0,0.000438,14]
[310246480,1704414701635,-500.0,0.00043835,7]
[310246481,1704414701645,-500.0,0.00043835,10]
[310246482,1704414701655,-500.0,0.00043835,2]
[310246483,1704414701664,-500.0,0.00043835,2]
[310246484,1704414701673,-500.0,0.00043835,2]
[310246485,1704414701683,-500.0,0.00043835,2]
[310246486,1704414701692,-500.0,0.00043835,2]
[310246487,1704414701701,-500.0,0.00043835,2]
[310246488,1704414701711,-500.0,0.00043835,2]
[310246489,1704414701720,-500.0,0.00043835,2]
[310246490,1704414701730,-500.0,0.00043835,2]
[310246491,1704414701739,-500.0,0.00043835,2]
[310246492,1704414701748,-224.36015442,0.00043835,2]
[310246493,1704414701758,-822.52,0.00043835,15]
[310246494,1704414701769,-822.52,0.00043835,15]
[310246495,1704414701779,-822.52,0.00043835,15]
[310246496,1704414701789,-822.52,0.00043835,15]
[310246497,1704414701799,-822.52,0.00043835,15]
[310246498,1704414701808,-822.52,0.00043835,15]
[310246499,1704414701818,-822.52,0.00043835,15]
[310246500,1704414701835,-822.52,0.00043835,15]
[310246501,1704414701855,-822.52,0.00043835,15]
[310246502,1704414701872,-822.52,0.00043835,15]
[310246503,1704414701891,-822.52,0.00043835,15]
[310246504,1704414701909,-822.52,0.00043835,15]
[310246505,1704414701925,-822.52,0.00043835,15]
[310246506,1704414701943,-822.52,0.00043835,15]
[310246507,1704414701960,-822.52,0.00043835,15]
[310246508,1704414701978,-822.52,0.00043835,15]
[310246509,1704414701995,-822.52,0.00043835,15]
[310246510,1704414702011,-822.52,0.00043835,15]
[310246511,1704414702031,-822.52,0.00043835,15]
[310246512,1704414702044,-822.52,0.00043835,15]
[310246513,1704414702059,-822.52,0.00043835,15]
[310246514,1704414702076,-822.52,0.00043835,15]
[310246515,1704414702089,-822.52,0.00043835,15]
[310246516,1704414702105,-822.63211321,0.00043835,15]
[310246517,1704414702121,-653.35,0.00043835,120]
[310246518,1704414702136,-1847.72,0.00043835,7]
[310246519,1704414702151,-500.0,0.00043835,109]
[310246520,1704414702166,-9938.265,0.00043836,2]
[310246521,1704414702180,-156.87,0.00043836,7]
[310246522,1704414702195,-150.0,0.00043858,30]
[310246523,1704414702211,-150.0,0.00043875,30]
[310246524,1704414702225,-150.0,0.00043875,30]
[310246525,1704414702240,-300.0,0.0004389,5]
[310246526,1704414702255,-300.0,0.0004389,5]
[310246527,1704414702271,-1811.19058068,0.000439,15]
[310246528,1704414702285,-1000.0,0.000439,13]
[310246529,1704414702301,-150.0,0.00043925,30]
[310246530,1704414702316,-855.904669,0.0004394,8]
[310246531,1704414702331,-500.0,0.0004396,8]
[310246532,1704414702346,-500.0,0.0004398,8]
[310246533,1704414702360,-500.0,0.00043987,37]
[310246534,1704414702375,-1105.95,0.00043989,30]
[310246535,1704414702390,-467273.00116687,0.0004399,30]
[310246536,1704414702405,-972.0,0.0004399,2]
[310246537,1704414702420,-150.0,0.00043993,30]
[310246538,1704414702435,-100000.0,0.00044,14]
[310246539,1704414702450,-10000.0,0.00044,10]
[310246540,1704414702464,-9101.88,0.00044,2]
[310246541,1704414702479,-800.0,0.00044,2]
[310246542,1704414702494,-12625.0,0.00044,2]
[310246543,1704414702510,-6132.24868795,0.00044,2]
[310246544,1704414702525,-503.2046556,0.00044,14]
[310246545,1704414702539,-64796.04980591,0.00044,8]
[310246546,1704414702554,-2110.0,0.00044,15]
[310246547,1704414702569,-312.351833,0.00044,22]
[310246548,1704414702584,-20000.0,0.00044,12]
[310246549,1704414702599,-182.28746155,0.00044,7]
[310246550,1704414702614,-6708.8278268,0.00044,30]
[310246551,1704414702628,-300.0,0.00044,45]
[310246552,1704414702642,-993.32751399,0.00044,30]
[310246553,1704414702658,-15000.0,0.00044,4]
[310246554,1704414702672,-20000.0,0.00044,38]
[310246555,1704414702687,-2000.0,0.00044,2]
[310246556,1704414702700,-1000.0,0.00044,13]
[310246557,1704414702714,-1000.0,0.00044,2]
[310246558,1704414702728,-300.0,0.00044,20]
[310246559,1704414702744,-500.0,0.00044,8]
[310246560,1704414702758,-150.0,0.00044,49]
[310246561,1704414702774,-1000.0,0.00044,2]
[310246562,1704414702789,-915.5646056,0.00044,9]
[310246563,1704414702803,-500.0,0.0004402,8]
[310246564,1704414702817,-150.0,0.00044038,4]
[310246565,1704414702831,-152.95511515,0.00044039,22]
[310246566,1704414702844,-500.0,0.0004404,8]
[310246567,1704414702858,-150.0,0.00044052,2]
[310246568,1704414702874,-653.35,0.00044054,120]
[310246569,1704414702888,-500.0,0.00044054,110]
[310246570,1704414702902,-150.0,0.0004406,30]
[310246571,1704414702917,-500.0,0.0004406,8]
[310246572,1704414702931,-150.0,0.00044063,30]
[310246573,1704414702947,-150.0,0.00044063,30]
[310246574,1704414702960,-500.0,0.0004408,9]
[310246575,1704414702975,-200.0,0.000441,2]
[310246576,1704414702991,-1000.0,0.000441,14]
[310246577,1704414703005,-500.0,0.000441,9]
[310246578,1704414703019,-200.0,0.000441,2]
[310246579,1704414703175,-150.0,0.000441,30]
[310246580,1704414703185,-150.0,0.000441,30]
[310246581,1704414703197,-500.0,0.00044109,7]
[310246582,1704414703206,-522.67,0.00044109,2]
[310246583,1704414703216,-1847.72,0.00044109,7]
[310246584,1704414703226,-500.0,0.0004412,9]
[310246585,1704414703235,-150.0,0.00044127,30]
[310246586,1704414703244,-500.0,0.0004414,9]
[310246587,1704414703254,-500.0,0.0004416,9]
[310246588,1704414703263,-500.0,0.0004418,9]
[310246589,1704414703273,-150.0,0.00044182,30]
[310246590,1704414703283,-150.0,0.00044182,30]
[310246591,1704414703295,-300.0,0.00044192,5]
[310246592,1704414703305,-300.0,0.00044192,5]
[310246593,1704414703314,-150.0,0.00044194,30]
[310246594,1704414703324,-1000.0,0.000442,14]
[310246595,1704414703333,-500.0,0.000442,9]
[310246596,1704414703343,-500.0,0.0004422,9]
[310246597,1704414703353,-500.0,0.0004424,9]
[310246598,1704414703362,-5084.2,0.00044245,101]
[310246599,1704414703372,-150.0,0.0004425,30]
[310246600,1704414703382,-150.0,0.0004425,30]
[310246601,1704414703393,-500.0,0.0004426,9]
[310246602,1704414703404,-150.0,0.00044261,30]
[310246603,1704414703414,-653.35,0.00044273,120]
[310246604,1704414703423,-500.0,0.00044273,111]
[310246605,1704414703434,-500.0,0.0004428,9]
[310246606,1704414703444,-1000.0,0.000443,14]
[310246607,1704414703454,-500.0,0.000443,9]
[310246608,1704414703464,-500.0,0.0004432,9]
[310246609,1704414703474,-150.0,0.00044328,30]
[310246610,1704414703484,-500.0,0.0004434,9]
[310246611,1704414703493,-220.0,0.00044346,28]
[310246612,1704414703502,-150.0,0.00044357,30]
[310246613,1704414703511,-500.0,0.0004436,9]
[310246614,1704414703521,-500.0,0.0004438,9]
[310246615,1704414703533,-500.0,0.00044383,7]
[310246616,1704414703543,-1847.72,0.00044383,7]
[310246617,1704414703553,-195.79,0.00044384,2]
[310246618,1704414703563,-150.0,0.00044396,30]
[310246619,1704414703572,-5200.0,0.000444,27]
[310246620,1704414703581,-5200.0,0.000444,28]
[310246621,1704414703591,-5200.0,0.000444,29]
[310246622,1704414703600,-1000.0,0.000444,14]
[310246623,1704414703610,-500.0,0.000444,9]
[310246624,1704414703619,-336.22880366,0.000444,30]
[310246625,1704414703629,-500.0,0.0004442,9]
[310246626,1704414703639,-150.0,0.00044438,30]
[310246627,1704414703649,-150.0,0.00044438,30]
[310246628,1704414703659,-500.0,0.0004444,9]
[310246629,1704414703668,-500.0,0.0004446,9]
[310246630,1704414703678,-150.0,0.00044463,30]
[310246631,1704414703687,-500.0,0.0004448,9]
[310246632,1704414703696,-5092.9588101,0.0004449,2]
[310246633,1704414703706,-653.35,0.00044493,120]
[310246634,1704414703716,-405.61705931,0.00044493,112]
[310246635,1704414703727,-300.0,0.00044493,5]
[310246636,1704414703737,-300.0,0.00044493,5]
[310246637,1704414703746,-1363.8206616,0.00044495,30]
[310246638,1704414703757,-2110.0,0.000445,15]
[310246639,1704414703767,-10000.0,0.000445,7]
[310246640,1704414703777,-1662.44855356,0.000445,60]
[310246641,1704414703788,-20166.45626958,0.000445,45]
[310246642,1704414703799,-1000.0,0.000445,14]
[310246643,1704414703808,-500.0,0.000445,9]
[310246644,1704414703817,-522.67,0.0004452,2]
[310246645,1704414703826,-500.0,0.0004452,9]
[310246646,1704414703836,-150.0,0.0004453,30]
[310246647,1704414703845,-500.0,0.0004454,9]
[310246648,1704414703855,-150.0,0.0004455,30]
[310246649,1704414703864,-3922.92618284,0.00044551,7]
[310246650,1704414703874,-27652.02715834,0.00044551,7]
[310246651,1704414703884,-500.0,0.0004456,9]
[310246652,1704414703896,-197.4921203,0.00044575,30]
[310246653,1704414703906,-500.0,0.0004458,9]
[310246654,1704414703918,-150.0,0.00044591,30]
[310246655,1704414703928,-150.0,0.00044591,30]
[310246656,1704414703937,-150.0,0.00044597,30]
[310246657,1704414703947,-241.03655095,0.000446,120]
[310246658,1704414703957,-1000.0,0.000446,15]
[310246659,1704414703966,-500.0,0.000446,9]
[310246660,1704414703976,-500.0,0.0004462,9]
[310246661,1704414703985,-150.0,0.00044625,30]
[310246662,1704414703995,-150.0,0.00044625,30]
[310246663,1704414704004,-500.0,0.0004464,9]
[310246664,1704414704014,-500.0,0.00044657,7]
[310246665,1704414704023,-1847.72,0.00044657,7]
[310246666,1704414704033,-500.0,0.0004466,9]
[310246667,1704414704042,-150.0,0.00044664,30]
[310246668,1704414704052,-500.0,0.0004468,9]